bitfinex/quotes_ETHUSD_20240821
["timestamp","ask_amount","ask_price","bid_price","bid_amount"]
[1724221248490,3.972,2608.5,2608.1,1.163108]
[1724221248692,3.972,2609.1,2608.1,1.163108]
[1724221248693,3.972,2608.2,2608.1,1.163108]
[1724221248862,3.972,2608.2,2608.1,0.55]
[1724221249063,3.972,2608.2,2608.0,0.55]
[1724221249401,3.972,2608.2,2607.7,6.27937]
[1724221249555,3.972,2608.2,2607.7,2.4446]
[1724221249750,3.972,2608.2,2607.8,0.64946]
[1724221250271,3.972,2608.2,2607.8,4.48407]
[1724221250449,3.972,2608.2,2607.8,0.64946]
[1724221250851,3.972,2608.2,2607.9,0.55]
[1724221255771,3.972,2608.2,2607.8,0.64946]
[1724221256154,2.2795,2608.3,2607.8,0.64946]
[1724221256155,3.972,2607.9,2607.8,0.64946]
[1724221257103,3.972,2608.2,2607.8,0.64946]
[1724221257553,3.0,2608.5,2607.8,0.64946]
[1724221257554,6.972,2608.5,2607.9,2.499]
[1724221257754,3.972,2608.5,2608.0,5.082596]
[1724221258721,3.972,2608.5,2608.0,1.248306]
[1724221260025,3.972,2608.6,2608.2,3.83397]
[1724221260382,3.972,2608.9,2608.3,0.55]
[1724221260611,3.972,2608.6,2608.4,0.438396]
[1724221260784,3.972,2608.6,2608.3,0.55]
[1724221260980,3.972,2608.6,2608.2,4.38404]
[1724221261981,3.972,2608.6,2608.2,4.38395]
[1724221262183,3.972,2608.6,2608.5,3.83362]
[1724221262383,3.972,2608.6,2608.5,0.55]
[1724221262580,3.972,2608.6,2608.5,0.988376]
[1724221262816,3.972,2608.6,2608.5,0.55]
[1724221262998,3.972,2608.6,2608.3,0.55]
[1724221263202,3.972,2608.6,2608.4,3.83372]
[1724221263489,3.972,2608.6,2608.5,0.55]
[1724221264208,3.972,2608.6,2608.4,0.55]
[1724221264407,3.972,2608.6,2608.3,0.55]
[1724221264721,3.972,2608.6,2608.4,0.438392]
[1724221264900,3.972,2608.6,2608.5,0.55]
[1724221266223,3.972,2608.9,2608.5,0.55]
[1724221266389,3.972,2608.9,2608.5,6.75201]
[1724221267492,3.972,2608.9,2608.5,2.9184]
[1724221267720,3.972,2608.9,2608.6,0.675206]
[1724221268340,3.972,2608.9,2608.6,4.508666]
[1724221268521,3.972,2608.9,2608.7,0.55]
[1724221269790,3.972,2609.2,2608.8,3.90974057]
[1724221270050,3.972,2609.2,2608.9,0.55]
[1724221270208,3.972,2609.2,2609.0,0.44597406]
[1724221270395,3.972,2609.2,2609.1,0.55]
[1724221271640,0.40130484,2610.2,2609.7,3.83174]
[1724221271641,4.37330484,2610.2,2609.7,3.83174]
[1724221271796,4.37330484,2610.2,2609.8,3.83166]
[1724221271797,3.972,2610.2,2609.8,3.83166]
[1724221272143,3.972,2610.2,2609.9,0.383166]
[1724221272741,3.972,2610.2,2609.6,3.90852498]
[1724221272894,3.972,2610.2,2609.7,0.55]
[1724221273096,3.972,2610.2,2609.5,2.4806]
[1724221273931,3.972,2610.2,2609.5,6.31269]
[1724221274132,3.972,2610.2,2609.6,3.83198]
[1724221274375,3.972,2610.2,2609.7,0.631258]
[1724221274544,3.972,2610.2,2609.7,4.463088]
[1724221274722,3.972,2610.2,2609.7,4.463068]
[1724221274924,3.972,2610.3,2609.8,3.83167]
[1724221275677,3.972,2610.3,2609.7,0.631258]
[1724221275838,3.972,2610.3,2609.8,0.4463128]
[1724221276045,2.425,2610.5,2609.8,0.4463128]
[1724221276046,3.972,2610.0,2609.8,0.4463128]
[1724221277018,3.972,2610.0,2609.5,6.31274]
[1724221277175,3.972,2610.0,2609.6,4.38198]
[1724221277544,3.972,2610.0,2609.6,4.38191]
[1724221278080,3.972,2610.0,2609.5,2.4806]
[1724221278874,3.972,2610.0,2609.6,3.83189]
[1724221279079,3.972,2610.0,2609.7,0.631249]
[1724221279377,2.425,2610.5,2609.7,0.631249]
[1724221279593,3.972,2610.4,2609.8,3.83166]
[1724221280787,3.972,2610.4,2609.7,0.631249]
[1724221280990,3.972,2610.4,2609.8,0.4463139]
[1724221282892,3.972,2610.4,2609.6,3.8319]
[1724221284446,3.972,2610.0,2609.2,11.74247]
[1724221284877,3.972,2609.7,2609.2,7.91]
[1724221285267,3.972,2609.7,2609.2,11.74256]
[1724221285502,3.972,2609.7,2609.3,1.402126]
[1724221287699,3.972,2609.4,2609.3,1.402126]
[1724221287993,3.972,2609.4,2609.2,4.05]
[1724221288363,3.972,2609.7,2609.2,4.05]
[1724221289656,3.972,2609.7,2609.2,6.3922]
[1724221291362,3.972,2609.7,2609.2,10.22478]
[1724221291604,3.972,2609.7,2609.2,6.3922]
[1724221291760,3.972,2609.7,2609.3,1.022492]
[1724221292258,3.0,2609.6,2609.3,1.022492]
[1724221294858,3.972,2609.4,2609.2,4.05]
[1724221297116,3.972,2609.4,2609.0,0.44597406]
[1724221297117,5.3346,2609.3,2609.0,0.44597406]
[1724221297416,5.3346,2609.3,2608.4,2.3826]
[1724221297417,3.972,2609.1,2608.4,2.3826]
[1724221298579,3.972,2609.1,2608.4,6.21634]
[1724221298965,3.0,2609.3,2608.7,3.83321]
[1724221299169,3.972,2609.4,2608.9,2.3269]
[1724221299403,3.972,2609.7,2608.9,6.1598]
[1724221299703,3.972,2609.7,2609.0,0.55]
[1724221299704,3.0,2609.6,2609.0,0.55]
[1724221299864,3.972,2609.7,2609.0,4.3828]
[1724221300059,4.37322946,2610.0,2609.2,2.4013]
[1724221300304,4.37322946,2610.0,2609.3,1.10502151]
[1724221300489,4.37322946,2610.0,2609.3,1.028399]
[1724221300691,4.37322946,2610.0,2609.4,0.04666081]
[1724221302113,3.0,2609.9,2609.4,0.04666081]
[1724221304207,4.37322946,2610.0,2609.5,2.4593]
[1724221304377,4.37322946,2610.0,2609.6,0.25059608]
[1724221304378,3.972,2610.0,2609.6,0.25059608]
[1724221304802,3.972,2610.3,2609.7,0.04666081]
[1724221305614,3.0,2610.2,2609.7,0.04666081]
[1724221306979,3.972,2610.3,2609.8,2.3807]
[1724221307168,3.972,2610.6,2609.9,4.29273608]
[1724221307480,3.972,2610.6,2609.9,4.33908662]
[1724221308812,3.0,2610.5,2609.9,4.33908662]
[1724221310804,3.972,2610.3,2609.9,4.33908662]
[1724221312067,3.0,2610.5,2609.9,4.33908662]
[1724221312263,3.0,2610.5,2610.0,0.67963962]
[1724221312513,3.0,2610.5,2610.0,0.72444514]
[1724221314813,3.972,2610.3,2610.0,0.72444514]
[1724221316861,3.0,2610.5,2610.1,2.3799]
[1724221317019,3.0,2610.5,2610.1,2.42268164]
[1724221317222,3.0,2610.5,2610.2,0.31023213]
[1724221317738,3.0,2610.6,2610.3,0.04278164]
[1724221317940,3.0,2610.6,2610.3,0.03469146]
[1724221318261,3.0,2610.6,2610.2,0.31023213]
[1724221318480,3.0,2610.6,2610.4,0.04241192]
[1724221318679,3.0,2610.6,2610.2,0.31023213]
[1724221318983,3.0,2610.6,2610.5,0.04240192]
[1724221319183,3.0,2610.6,2610.2,0.31023213]
[1724221319336,3.972,2610.7,2610.5,2.3343619]
[1724221319541,3.972,2610.7,2610.6,0.23343619]
[1724221319542,3.922,2610.7,2610.6,0.23343619]
[1724221319771,3.922,2610.7,2610.6,0.27579809]
[1724221320340,3.922,2610.7,2610.6,0.0423619]
[1724221320769,3.922,2610.7,2610.2,2.56903213]
[1724221321282,3.922,2610.7,2610.3,0.04213183]
[1724221321440,3.922,2610.7,2610.2,2.56903213]
[1724221321640,3.922,2610.7,2610.4,0.04213183]
[1724221321879,3.922,2610.7,2610.2,2.56903213]
[1724221322139,3.922,2610.7,2610.5,0.04213183]
[1724221322293,3.922,2610.7,2610.3,0.25690321]
[1724221322496,3.922,2610.7,2610.6,0.04213183]
[1724221322690,3.922,2610.7,2610.3,0.25690321]
[1724221322691,6.4046,2610.7,2610.0,0.67963962]
[1724221322897,3.0,2610.6,2610.0,0.67963962]
[1724221323191,3.0,2610.6,2610.2,2.3077]
[1724221323568,3.972,2610.3,2610.2,2.3077]
[1724221324277,3.972,2610.3,2610.2,0.04211183]
[1724221332779,3.972,2610.3,2609.9,4.05]
[1724221332780,6.972,2610.3,2609.9,4.05]
[1724221332993,6.972,2610.3,2609.3,2.4127]
[1724221332994,3.972,2610.0,2609.3,2.4127]
[1724221333197,3.972,2609.4,2609.3,0.24127]
[1724221333567,3.972,2609.4,2609.3,2.60487]
[1724221334599,3.972,2609.7,2609.3,2.60487]
[1724221336472,3.972,2609.7,2609.4,0.03815886]
[1724221336669,3.972,2609.7,2609.4,0.30246175]
[1724221337175,3.972,2609.7,2609.4,0.03815886]
[1724221337715,3.972,2609.7,2609.5,0.03816886]
[1724221337925,3.972,2609.6,2609.0,2.3421]
[1724221338133,3.972,2609.3,2609.0,2.3421]
[1724221338424,3.972,2609.3,2609.1,0.23421]
[1724221339504,3.0,2609.9,2609.2,2.3689]
[1724221339505,3.972,2609.6,2609.2,2.3689]
[1724221340675,3.972,2609.3,2609.1,0.23421]
[1724221343081,3.972,2609.3,2608.8,15.65474115]
[1724221343315,3.972,2608.9,2608.8,15.65474115]
[1724221343713,5.2522,2609.6,2608.8,15.65474115]
[1724221343714,3.972,2609.2,2608.8,15.65474115]
[1724221350376,3.972,2608.9,2608.8,4.05874115]
[1724221350665,6.2849,2609.1,2608.8,4.05874115]
[1724221351165,3.0,2609.0,2608.8,4.05874115]
[1724221351677,3.0,2609.0,2608.1,2.3514]
[1724221351837,3.972,2608.1,2607.8,2.3513]
[1724221355755,3.972,2608.1,2607.6,2.3393]
[1724221357757,3.972,2608.1,2607.5,3.87]
[1724221357991,3.972,2607.8,2607.5,3.87]
[1724221358146,3.972,2607.8,2607.6,1.85211271]
[1724221358551,3.972,2608.4,2607.7,2.2839]
[1724221358750,3.972,2608.4,2607.9,2.3705]
[1724221358960,3.972,2608.7,2607.9,2.3705]
[1724221359179,3.972,2608.7,2608.0,0.37637232]
[1724221359396,3.972,2608.7,2608.1,2.3061]
[1724221360550,3.972,2608.4,2608.1,2.3061]
[1724221360964,3.972,2608.7,2608.1,2.3061]
[1724221361166,3.972,2608.7,2608.1,2.38275359]
[1724221361384,3.972,2608.7,2608.2,0.26824699]
[1724221361803,3.972,2608.7,2608.3,0.07665215]
[1724221361984,0.40127675,2609.4,2608.3,2.3821]
[1724221361985,3.972,2609.0,2608.3,2.3821]
[1724221364626,5.4126,2609.4,2608.3,2.3821]
[1724221364785,3.972,2608.7,2608.3,2.3821]
[1724221364985,3.972,2608.7,2608.4,0.6510347]
[1724221370851,2.4808,2609.3,2608.5,2.3554]
[1724221371152,3.972,2609.1,2608.5,2.3554]
[1724221371509,3.972,2608.8,2608.5,2.3554]
[1724221371851,3.972,2608.8,2608.6,0.30064347]
[1724221372060,3.972,2608.8,2608.4,0.6510347]
[1724221378124,3.972,2608.5,2608.4,0.6510347]
[1724221380641,3.0,2609.3,2608.5,2.3259]
[1724221380890,3.972,2609.8,2608.7,2.3919]
[1724221381096,3.972,2609.8,2608.9,2.3919]
[1724221381259,6.2954,2610.1,2609.2,3.86]
[1724221381465,6.2954,2610.1,2609.3,2.46852328]
[1724221381466,3.972,2610.1,2609.3,2.46852328]
[1724221381649,3.972,2610.1,2609.4,1.40645233]
[1724221382689,3.972,2609.8,2609.4,1.40645233]
[1724221387356,3.972,2610.1,2609.4,1.40645233]
[1724221387549,3.972,2610.1,2609.5,0.37983523]
[1724221391150,3.972,2609.8,2609.5,0.37983523]
[1724221391591,3.972,2609.8,2609.4,1.40645233]
[1724221391904,0.54487571,2610.2,2608.8,1.07545425]
[1724221391905,3.972,2609.5,2608.8,1.07545425]
[1724221392111,3.972,2609.5,2608.7,2.4494]
[1724221398225,3.972,2609.5,2608.8,2.4085]
[1724221398370,3.972,2609.5,2608.8,2.44576154]
[1724221398781,3.972,2609.5,2608.8,0.03726154]
[1724221398983,3.972,2609.5,2608.5,5.4085]
[1724221399209,3.972,2609.5,2608.6,1.73771154]
[1724221401574,3.972,2609.2,2608.6,1.73771154]
[1724221402020,3.972,2609.5,2608.7,6.24249]
[1724221402326,3.972,2609.5,2608.8,0.55]
[1724221402520,3.972,2609.8,2609.0,2.4092]
[1724221402675,3.972,2609.8,2609.0,10.1452]
[1724221402872,3.972,2609.8,2609.1,0.0381918]
[1724221404127,3.9875304,2609.8,2609.1,0.0381918]
[1724221404422,3.9875304,2609.8,2609.1,1.12445588]
[1724221406654,3.9875304,2609.8,2609.1,1.20108533]
[1724221406861,3.9875304,2609.8,2609.1,1.12445588]
[1724221416673,3.972,2609.5,2609.1,1.12445588]
[1724221417288,3.9875304,2609.5,2609.1,1.12445588]
[1724221417427,3.9875304,2609.5,2609.2,1.12696559]
[1724221417631,3.9875304,2609.5,2609.3,0.03716153]
[1724221417983,3.9875304,2609.5,2609.4,0.03727155]
[1724221418134,3.9875304,2609.5,2609.2,1.12696559]
[1724221418487,3.9875304,2609.5,2609.3,0.03727155]
[1724221418832,3.9875304,2609.5,2609.2,1.12696559]
[1724221419030,3.9875304,2609.5,2609.3,0.03727155]
[1724221419246,3.9875304,2609.5,2609.2,1.12696559]
[1724221419448,3.9875304,2609.5,2609.4,0.03727155]
[1724221419943,3.9875304,2609.5,2609.2,1.12696559]
[1724221420156,3.9875304,2609.5,2609.3,0.03727155]
[1724221420357,3.9875304,2609.5,2609.2,1.12696559]
[1724221420575,3.9875304,2609.5,2609.3,0.03723154]
[1724221420872,3.9875304,2609.5,2609.2,1.12696559]
[1724221421373,3.9875304,2609.5,2609.3,0.03723154]
[1724221421548,3.9875304,2609.5,2609.2,1.12696559]
[1724221421742,3.9875304,2609.5,2609.3,0.03723154]
[1724221421931,3.9875304,2609.5,2609.2,1.12696559]
[1724221422126,3.9875304,2609.5,2609.3,0.03723154]
[1724221422330,3.9875304,2609.5,2609.2,1.12696559]
[1724221422633,3.9875304,2609.5,2609.3,0.03723154]
[1724221422838,3.9875304,2609.5,2609.2,1.12696559]
[1724221423062,3.9875304,2609.5,2609.4,0.03744158]
[1724221423274,3.9875304,2609.5,2609.2,1.12696559]
[1724221423819,3.9875304,2609.5,2609.3,0.03744158]
[1724221423936,3.9875304,2609.5,2609.2,1.12696559]
[1724221424138,3.9875304,2609.5,2609.3,0.03744158]
[1724221424339,3.9875304,2609.5,2609.3,0.31647363]
[1724221424553,3.9875304,2609.5,2609.4,0.03741158]
[1724221424739,3.9875304,2609.5,2609.2,1.12696559]
[1724221424936,3.9875304,2609.5,2609.3,0.03744158]
[1724221425245,3.9875304,2609.5,2609.2,3.12729472]
[1724221425446,3.9875304,2609.5,2609.4,0.03744158]
[1724221425643,3.9875304,2609.5,2609.2,3.12729472]
[1724221425841,3.9875304,2609.5,2609.4,0.03744158]
[1724221426086,3.9875304,2609.5,2609.3,0.39345349]
[1724221426378,3.9875304,2609.5,2609.4,0.03745159]
[1724221429088,6.3874,2608.9,2608.4,3.86]
[1724221429396,6.3874,2608.9,2608.5,0.70184046]
[1724221429397,3.972,2608.9,2608.5,0.70184046]
[1724221429570,3.972,2608.9,2608.5,2.98074046]
[1724221429889,3.972,2608.9,2608.6,1.3338231]
[1724221430236,3.972,2608.9,2608.7,0.03554138]
[1724221430577,3.972,2608.9,2608.7,0.46704876]
[1724221432976,3.9875304,2609.2,2608.7,0.46704876]
[1724221433338,3.9875304,2609.2,2608.8,2.3464]
[1724221433535,3.9875304,2609.2,2608.9,0.03637176]
[1724221433766,3.9875304,2609.2,2608.9,0.31779967]
[1724221435280,0.0155304,2609.2,2608.9,0.31779967]
[1724221436182,3.9875304,2609.2,2608.9,0.31779967]
[1724221442989,0.0155304,2609.2,2608.9,0.31779967]
[1724221446482,1.654,2609.0,2608.9,0.31779967]
[1724221448094,1.654,2609.0,2608.9,0.03637176]
[1724221448449,1.654,2609.0,2608.6,10.2129]
[1724221448656,1.654,2608.7,2608.6,10.2129]
[1724221450310,1.654,2608.7,2608.6,13.54730867]
[1724221450454,1.654,2608.7,2608.6,11.54666903]
[1724221450653,1.654,2608.7,2608.6,13.97574088]
[1724221450967,1.654,2608.7,2608.6,15.9764097]
[1724221451279,1.654,2608.7,2608.6,13.97574088]
[1724221451483,1.654,2608.7,2608.6,15.97636776]
[1724221451811,1.654,2608.7,2608.6,15.97635018]
[1724221452106,1.654,2608.7,2608.6,16.01078278]
[1724221452469,1.654,2608.7,2608.6,16.0107741]
[1724221454066,1.654,2608.7,2608.6,14.01015578]
[1724221455133,1.654,2608.7,2608.6,16.01080858]
[1724221455293,1.654,2608.7,2608.6,12.67640445]
[1724221455501,1.654,2608.7,2608.6,14.01020448]
[1724221455711,1.654,2608.7,2608.6,12.67640445]
[1724221456016,1.654,2608.7,2608.6,16.01087807]
[1724221456822,1.654,2608.7,2608.6,16.01081323]
[1724221456969,1.654,2608.7,2608.6,16.01080829]
[1724221457771,1.654,2608.7,2608.6,16.01082166]
[1724221459723,1.654,2608.7,2608.6,14.01016796]
[1724221459888,1.654,2608.7,2608.6,11.53326796]
[1724221460212,1.654,2608.7,2608.6,10.19950445]
[1724221460515,1.654,2608.7,2608.6,11.53333458]
[1724221460673,1.654,2608.7,2608.6,10.19950445]
[1724221461437,1.654,2608.7,2608.6,11.53334283]
[1724221463007,0.0155304,2609.2,2608.6,13.90154283]
[1724221463205,1.654,2608.9,2608.7,5.0721036]
[1724221463452,1.654,2608.9,2608.8,1.36837104]
[1724221463752,1.654,2608.9,2608.8,0.03453266]
[1724221464058,1.654,2608.9,2608.7,1.73762341]
[1724221464361,1.654,2608.9,2608.8,0.03453266]
[1724221464505,1.654,2608.9,2608.8,0.98534827]
[1724221464710,1.654,2608.9,2608.8,0.95081561]
[1724221464915,1.654,2608.9,2608.8,0.98529825]
[1724221465419,1.654,2608.9,2608.8,0.03448264]
[1724221465420,4.1139,2608.9,2608.8,0.03448264]
[1724221465644,4.1139,2608.9,2608.4,3.86]
[1724221465808,1.654,2608.5,2608.4,3.86]
[1724221467120,1.654,2608.5,2608.4,3.89419262]
[1724221467367,1.654,2608.5,2608.4,4.24941926]
[1724221469562,4.0143,2608.5,2608.4,4.24941926]
[1724221469858,4.0143,2608.5,2608.4,3.86]
[1724221474269,2.3836,2609.1,2608.4,3.86]
[1724221474474,1.654,2608.5,2608.4,3.86]
[1724221476333,1.654,2608.5,2607.9,7.736]
[1724221476880,1.654,2608.3,2607.9,7.736]
[1724221477044,1.654,2608.3,2608.0,1.5146]
[1724221478789,1.654,2608.6,2608.0,1.5146]
[1724221478993,1.654,2608.3,2608.0,1.5146]
[1724221479141,1.654,2608.3,2608.1,2.2912]
[1724221479340,1.654,2608.3,2608.2,0.38058]
[1724221479978,1.654,2608.3,2608.0,1.5146]
[1724221482591,1.654,2608.1,2608.0,1.5146]
[1724221482740,1.654,2608.1,2607.9,7.736]
[1724221483960,1.654,2608.1,2607.5,11.27]
[1724221484170,1.654,2607.7,2607.5,11.27]
[1724221484384,1.654,2607.7,2607.5,3.86]
[1724221485096,1.654,2607.7,2607.6,0.386]
[1724221487048,1.654,2607.7,2607.5,3.86]
[1724221489359,2.39,2608.5,2607.5,3.86]
[1724221489565,1.654,2607.9,2607.6,2.2944]
[1724221490445,2.39,2608.5,2607.6,2.2944]
[1724221490446,6.362,2608.5,2607.6,2.2944]
[1724221490647,6.362,2608.5,2607.7,0.61544]
[1724221492285,6.362,2608.5,2607.8,0.03393495]
[1724221494055,2.39,2608.5,2607.8,0.03393495]
[1724221494382,7.27,2608.7,2607.9,2.3741]
[1724221494383,2.271,2608.7,2607.9,2.3741]
[1724221494570,5.271,2608.7,2608.0,0.23741]
[1724221494769,5.271,2608.7,2608.0,0.27219514]
[1724221496087,2.271,2608.7,2608.0,0.27219514]
[1724221496403,3.972,2609.1,2608.1,2.8548]
[1724221496567,2.4205304,2609.2,2608.3,2.3525]
[1724221497096,2.4205304,2609.2,2608.4,0.03458505]
[1724221499731,3.972,2609.1,2608.4,0.03458505]
[1724221500083,0.0155304,2609.2,2608.5,2.4255]
[1724221500283,0.0155304,2609.2,2608.6,0.24600851]
[1724221500508,0.0155304,2609.2,2608.6,0.28059356]
[1724221504294,0.0155304,2609.2,2608.7,2.4672]
[1724221504691,0.0155304,2609.2,2608.8,0.03458505]
[1724221504893,3.9875304,2609.2,2608.8,0.27477936]
[1724221505137,3.9875304,2609.2,2608.9,0.03369485]
[1724221505501,3.9875304,2609.2,2608.8,0.27477936]
[1724221505711,3.972,2608.9,2608.8,0.27477936]
[1724221506003,0.0155304,2609.2,2608.9,2.3017]
[1724221506231,0.0155304,2609.2,2609.0,0.25764794]
[1724221509951,3.972,2609.1,2609.0,0.25764794]
[1724221513555,3.972,2609.1,2608.6,0.24600851]
[1724221513694,2.5125304,2609.2,2608.6,0.24600851]
[1724221513695,3.972,2608.8,2608.6,0.24600851]
[1724221515551,3.972,2608.8,2608.4,7.736]
[1724221515552,2.497,2608.7,2608.4,2.3244]
[1724221515846,3.972,2608.5,2607.9,2.4539]
[1724221516138,2.497,2608.7,2607.9,2.4539]
[1724221516139,3.972,2608.0,2607.9,2.4539]
[1724221516810,3.972,2608.0,2607.6,5.932]
[1724221516811,3.972,2608.0,2607.7,2.4799]
[1724221518390,2.4116,2608.9,2607.7,2.4799]
[1724221518530,3.972,2608.1,2607.7,2.4799]
[1724221518729,3.972,2608.1,2607.8,1.04130167]
[1724221520029,3.972,2608.1,2607.9,0.03353483]
[1724221520472,7.27,2608.8,2607.9,0.03353483]
[1724221520473,3.972,2608.5,2608.0,2.2916]
[1724221520986,3.972,2608.2,2608.1,0.03419488]
[1724221521275,3.972,2608.2,2608.1,0.26677437]
[1724221522883,3.972,2608.5,2608.1,0.26677437]
[1724221523885,2.4116,2608.9,2608.1,0.26677437]
[1724221523886,3.972,2608.2,2608.1,0.26677437]
[1724221526340,3.972,2608.5,2608.1,0.26677437]
[1724221526591,3.972,2608.5,2608.3,2.4351]
[1724221526957,3.972,2608.5,2608.4,0.03406484]
[1724221528000,3.972,2608.5,2608.2,5.932]
[1724221528300,3.972,2608.5,2608.4,0.03395482]
[1724221528887,3.972,2608.5,2608.2,5.932]
[1724221529095,3.972,2608.5,2608.4,0.03395482]
[1724221529595,3.972,2608.8,2608.4,2.39815482]
[1724221530385,3.972,2608.8,2608.4,6.25815482]
[1724221530586,3.972,2608.8,2608.5,2.3498]
[1724221530789,3.972,2608.8,2608.6,0.62437548]
[1724221531089,3.972,2608.8,2608.7,0.03395482]
[1724221532147,3.972,2608.8,2608.6,0.62437548]
[1724221532658,3.972,2608.8,2608.4,3.86]
[1724221532979,3.972,2608.5,2608.4,3.86]
[1724221534725,3.972,2608.8,2608.4,3.86]
[1724221537759,2.3285,2608.9,2608.4,3.86]
[1724221537760,3.972,2608.5,2608.4,3.86]
[1724221537930,6.3779,2608.5,2608.4,3.86]
[1724221539822,3.972,2608.5,2608.4,4.8392]
[1724221541326,3.972,2608.5,2608.4,3.86]
[1724221547243,3.972,2608.5,2607.7,2.4676]
[1724221547244,6.3953,2608.5,2607.7,2.4676]
[1724221547751,6.3953,2608.5,2607.8,0.03390479]
[1724221551463,6.3953,2608.5,2607.6,7.93329778]
[1724221551661,6.3953,2608.5,2607.9,0.03390479]
[1724221551884,6.3953,2608.5,2607.6,7.9333001]
[1724221552175,6.3953,2608.5,2608.0,0.03410483]
[1724221552330,3.972,2608.2,2608.1,0.03410483]
[1724221552526,6.3435,2608.2,2608.1,0.03410483]
[1724221552782,6.3435,2608.2,2607.7,1.50489402]
[1724221552989,6.3435,2608.2,2607.8,0.77786425]
[1724221560075,6.3116,2607.9,2607.8,0.03417485]
[1724221560481,6.3116,2607.9,2607.5,3.86]
[1724221560680,6.3116,2607.9,2607.8,0.03442496]
[1724221560681,2.3396,2607.9,2607.8,0.03442496]
[1724221561209,2.3396,2607.9,2607.5,3.86]
[1724221561529,2.3396,2607.9,2607.8,0.03442496]
[1724221561684,2.3396,2607.9,2607.2,7.41]
[1724221562028,2.3396,2607.9,2607.3,0.96612]
[1724221562328,2.3396,2607.9,2607.3,1.0001066]
[1724221563343,2.4832,2607.7,2607.3,0.0339866]
[1724221563481,3.972,2607.4,2607.3,0.0339866]
[1724221563679,3.972,2607.4,2607.2,7.41]
[1724221563879,3.972,2607.4,2607.3,0.03413665]
[1724221564104,3.972,2607.4,2607.3,0.77855032]
[1724221564319,3.972,2607.4,2607.3,0.74441367]
[1724221564476,3.972,2607.4,2607.3,0.77855032]
[1724221565124,3.972,2607.4,2607.3,0.03413665]
[1724221565827,3.972,2607.4,2606.8,7.41]
[1724221566125,3.972,2607.4,2607.3,0.03413665]
[1724221566285,3.972,2607.4,2606.8,7.41]
[1724221566479,3.972,2607.4,2607.3,0.03413665]
[1724221566676,3.972,2607.4,2606.8,7.41]
[1724221566882,3.972,2607.4,2607.3,0.03413665]
[1724221567106,3.972,2607.4,2606.9,1.9684]
[1724221567335,3.972,2607.4,2607.3,0.03413665]
[1724221567481,3.972,2607.4,2606.9,1.9684]
[1724221567685,3.972,2607.4,2607.3,0.03413665]
[1724221568234,3.972,2607.4,2606.9,1.9684]
[1724221568401,3.972,2607.4,2607.3,0.03413665]
[1724221568696,3.972,2607.4,2607.0,0.93784]
[1724221568904,3.972,2607.4,2607.3,0.03413665]
[1724221569094,3.972,2607.4,2607.0,0.93784]
[1724221569294,3.972,2607.4,2607.3,0.03413665]
[1724221569522,3.972,2607.4,2607.0,0.93784]
[1724221569796,3.972,2607.4,2607.1,0.290624]
[1724221569996,3.972,2607.4,2607.2,0.03413665]
[1724221570997,2.4938,2607.3,2607.2,0.03413665]
[1724221572436,3.972,2607.4,2607.2,0.03413665]
[1724221575025,6.4063,2607.4,2607.2,0.03413665]
[1724221577300,6.4063,2607.4,2607.0,0.93784]
[1724221577618,6.4063,2607.4,2607.1,0.290624]
[1724221577822,6.4063,2607.4,2607.1,0.32557104]
[1724221582048,3.972,2607.4,2607.1,0.32557104]
[1724221590009,3.0,2608.0,2607.1,0.32557104]
[1724221590010,5.2867,2608.0,2607.1,0.32557104]
[1724221590215,3.972,2607.9,2607.2,2.2989]
[1724221590412,2.2867,2608.0,2607.3,0.29748418]
[1724221590721,1.656,2607.4,2607.3,0.29748418]
[1724221592257,1.656,2607.4,2607.3,2.67688418]
[1724221592414,3.974,2607.7,2607.3,2.67688418]
[1724221592608,3.974,2607.7,2607.4,0.26768842]
[1724221593006,3.974,2607.7,2607.5,0.03503708]
[1724221595678,3.974,2607.7,2607.1,9.848]
[1724221595821,3.974,2607.7,2607.6,0.03480698]
[1724221596022,3.974,2607.7,2607.1,9.848]
[1724221596251,3.974,2607.7,2607.6,0.03480698]
[1724221596468,3.974,2607.7,2607.2,0.9848]
[1724221596668,3.974,2607.7,2607.6,0.03480698]
[1724221596849,3.974,2607.7,2607.2,0.9848]
[1724221597058,3.974,2607.7,2607.6,0.03480698]
[1724221597257,3.974,2607.7,2607.2,0.9848]
[1724221597573,3.974,2607.7,2607.3,1.08328]
[1724221597724,3.974,2607.7,2607.4,0.03480698]
[1724221599029,3.974,2607.7,2607.1,7.41]
[1724221599280,3.974,2607.4,2607.1,7.41]
[1724221599583,3.974,2607.4,2607.1,8.39206]
[1724221600655,3.974,2607.4,2607.1,0.98206]
[1724221600866,3.974,2607.4,2606.9,2.4106]
[1724221602140,3.974,2607.4,2607.0,1.33465754]
[1724221602491,3.974,2607.4,2606.9,2.4106]
[1724221603646,3.974,2607.4,2607.0,1.33464761]
[1724221605694,3.974,2607.4,2607.0,2.00191751]
[1724221606369,3.974,2607.4,2607.1,1.33464986]
[1724221606575,3.974,2607.4,2607.1,1.99009061]
[1724221606877,3.974,2607.4,2607.1,0.65544075]
[1724221607577,3.974,2607.4,2607.0,2.00192257]